bitfinex/quotes_ETHUSD_20250923
["timestamp","ask_amount","ask_price","bid_price","bid_amount"]
[1758596796851,0.64273278,4138.6,4138.1,0.004]
[1758596796852,4.99898573,4138.5,4138.1,0.004]
[1758596797019,0.64273278,4138.4,4138.1,0.004]
[1758596797219,0.13278573,4138.3,4138.2,0.004]
[1758596797432,0.81298573,4138.3,4138.2,0.004]
[1758596797754,1.32293278,4138.3,4138.2,0.004]
[1758596797949,0.81298573,4138.3,4138.2,0.004]
[1758596798165,1.32293278,4138.3,4138.2,0.004]
[1758596798447,1.32290187,4138.3,4138.2,0.004]
[1758596802050,0.64270187,4138.3,4138.2,0.004]
[1758596802355,1.32290187,4138.3,4138.2,0.004]
[1758596802919,8.38290187,4138.3,4138.2,0.004]
[1758596803115,2.96409594,4138.3,4138.2,0.004]
[1758596803352,2.33630924,4138.3,4138.2,0.004]
[1758596804860,3.792,4138.2,4138.0,1.64497923]
[1758596805037,14.34430924,4138.1,4138.0,1.64497923]
[1758596805237,17.34430924,4138.1,4138.0,1.64497923]
[1758596805662,20.55287723,4138.1,4138.0,1.64497923]
[1758596805862,21.98287723,4138.1,4138.0,1.64497923]
[1758596806165,0.792,4137.9,4137.8,0.004]
[1758596806351,8.83310924,4137.9,4137.8,0.004]
[1758596806554,9.53460924,4137.9,4137.8,0.004]
[1758596806863,0.792,4137.4,4137.1,0.02]
[1758596807062,21.22508147,4137.2,4137.1,0.02]
[1758596807229,24.99224971,4137.2,4137.1,0.02]
[1758596807428,25.69374971,4137.2,4137.1,0.02]
[1758596807761,0.792,4137.0,4136.1,0.02]
[1758596807966,25.69374971,4137.2,4136.1,0.02]
[1758596807967,0.792,4136.4,4136.1,0.02]
[1758596808126,4.53116219,4136.3,4136.1,0.02]
[1758596808331,2.95410924,4136.2,4136.1,0.02]
[1758596808540,3.19280924,4136.2,4136.1,0.02]
[1758596808866,3.65560924,4136.2,4136.1,0.02]
[1758596809279,3.65456329,4136.2,4136.1,0.02]
[1758596809586,3.19176329,4136.2,4136.1,0.02]
[1758596809727,0.86306329,4136.2,4136.1,0.02]
[1758596809928,6.48736142,4136.2,4136.1,2.43773651]
[1758596810164,0.792,4136.9,4136.1,2.43773651]
[1758596810339,0.35239174,4136.8,4136.1,0.02]
[1758596810542,0.35240508,4136.8,4136.2,0.242]
[1758596810773,6.265,4136.7,4136.2,0.242]
[1758596810972,6.265,4136.7,4136.1,0.4738]
[1758596810973,2.31027275,4136.6,4136.5,2.41745275]
[1758596811277,2.31027275,4136.6,4136.2,2.65962224]
[1758596811498,3.84777357,4137.6,4136.3,0.6958]
[1758596811790,0.35231192,4137.5,4136.6,2.41743243]
[1758596811961,6.61831192,4137.5,4136.8,2.41727165]
[1758596812291,3.85961851,4137.4,4136.8,2.41727165]
[1758596812445,0.35231192,4137.3,4136.8,2.41727165]
[1758596812646,4.175,4137.2,4136.4,0.242]
[1758596812840,0.22019495,4137.1,4136.9,2.41723883]
[1758596813088,6.265,4137.0,4136.9,2.41723883]
[1758596813403,0.22019495,4137.0,4136.9,2.41723883]
[1758596813558,3.0,4138.0,4136.9,0.6958]
[1758596813559,0.35225963,4137.5,4136.9,0.6958]
[1758596813740,6.264,4137.4,4136.9,0.242]
[1758596813948,4.39319495,4137.3,4137.0,2.41721053]
[1758596814271,4.173,4137.3,4136.9,2.65925655]
[1758596814514,4.173,4137.3,4137.0,2.41721053]
[1758596814769,4.173,4137.3,4137.0,2.41720348]
[1758596815587,0.1208,4137.0,4136.9,2.41726038]
[1758596815789,4.2938,4137.0,4136.9,2.41726038]
[1758596815995,4.2938,4137.0,4136.9,2.87106038]
[1758596816297,4.2908,4137.0,4136.9,3.11306038]
[1758596816470,6.3818,4137.0,4136.9,3.11306038]
[1758596816867,0.1208,4137.0,4136.9,3.11306038]
[1758596817072,4.2898,4137.0,4136.9,3.11306038]
[1758596818361,4.2878,4137.0,4136.9,3.11306038]
[1758596818616,0.001,4137.3,4137.2,2.41709368]
[1758596818823,0.001,4137.3,4137.2,3.11289368]
[1758596819123,4.169,4137.3,4137.2,3.11289368]
[1758596819263,0.437,4137.3,4137.2,3.11289368]
[1758596819461,0.001,4137.3,4137.2,3.11289368]
[1758596819661,0.547,4137.3,4137.2,3.11289368]
[1758596820919,0.547,4137.3,4137.2,2.41709368]
[1758596821563,0.001,4137.3,4137.2,3.11289368]
[1758596825586,0.001,4137.3,4137.2,2.41709368]
[1758596825837,0.001,4137.3,4137.2,3.11289368]
[1758596827275,0.001,4137.3,4137.2,2.41709368]
[1758596827676,0.001,4137.3,4137.2,3.11289368]
[1758596827890,0.001,4137.8,4137.7,2.4168016]
[1758596828403,0.001,4137.8,4137.7,3.1126016]
[1758596829019,0.001,4137.8,4137.7,2.6588016]
[1758596829370,0.001,4137.8,4137.7,3.1126016]
[1758596829618,0.001,4137.8,4137.7,2.4168016]
[1758596830138,0.7025,4137.8,4137.7,2.4168016]
[1758596830338,1.05605152,4137.8,4135.5,2.09]
[1758596830535,0.35354395,4137.7,4137.2,2.41707785]
[1758596830731,0.22096873,4137.6,4137.3,2.4170123]
[1758596830937,6.265,4137.5,4137.3,2.4170123]
[1758596831116,0.86270208,4137.4,4137.3,2.4170123]
[1758596831319,1.56420208,4137.4,4137.3,2.4170123]
[1758596831502,1.56420208,4137.4,4137.2,2.41708427]
[1758596831699,0.22096873,4137.3,4137.2,2.41708427]
[1758596831905,0.22096873,4137.3,4137.1,2.41715191]
[1758596831906,0.92246873,4137.3,4137.1,2.41715191]
[1758596832133,0.92246873,4137.2,4136.3,0.6958]
[1758596832332,0.22105378,4137.1,4136.4,2.41755719]
[1758596832636,4.172,4137.0,4136.0,2.41774834]
[1758596832839,0.35366699,4136.9,4136.8,2.41731728]
[1758596833139,0.22105378,4136.9,4136.8,2.41731728]
[1758596833288,0.86284772,4136.9,4136.8,2.41731728]
[1758596833494,5.03487429,4136.9,4136.8,2.41731728]
[1758596833696,7.12492325,4136.9,4136.8,2.41731728]
[1758596833907,7.12492325,4136.9,4136.6,2.41742996]
[1758596834109,1.4322235,4136.8,4136.7,2.41738583]
[1758596834324,1.56495466,4136.8,4136.7,2.41738583]
[1758596834525,0.86345466,4136.8,4136.7,2.41738583]
[1758596834839,0.7307235,4136.8,4136.7,2.41738583]
[1758596834994,0.8634745,4136.8,4136.6,2.41738989]
[1758596835342,0.22105378,4136.7,4136.5,0.004]
[1758596835539,0.58329892,4136.7,4136.6,2.41744427]
[1758596836844,0.58350227,4136.7,4136.6,2.41744427]
[1758596837048,0.35400227,4136.7,4136.6,2.41744427]
[1758596837586,0.22125713,4136.7,4136.6,2.66654427]
[1758596837864,6.48025713,4136.7,4136.6,2.41744427]
[1758596838222,7.21981306,4136.7,4136.6,2.41744427]
[1758596838459,0.1208,4136.6,4136.5,0.004]
[1758596838660,0.98495259,4136.6,4136.5,0.004]
[1758596838820,1.21445259,4136.6,4136.5,2.42150271]
[1758596839232,0.98495259,4136.6,4136.5,2.42150271]
[1758596839918,0.98495259,4136.6,4136.5,0.004]
[1758596840352,0.98495259,4136.6,4136.5,2.42150271]
[1758596840725,0.98532778,4136.6,4136.5,2.42150271]
[1758596840921,0.98532778,4136.6,4136.5,0.004]
[1758596841125,2.28506669,4136.6,4136.5,0.004]
[1758596841444,1.85277104,4136.6,4136.5,0.004]
[1758596841758,1.21482778,4136.6,4136.5,0.004]
[1758596842552,1.21482778,4136.6,4136.5,2.42150271]
[1758596842870,0.86452778,4136.6,4136.5,0.004]
[1758596843034,7.12252778,4136.6,4136.5,2.42150271]
[1758596843223,7.35202778,4136.6,4136.5,2.42150271]
[1758596844056,7.12252778,4136.6,4136.5,2.42150271]
[1758596844908,0.86452778,4136.6,4136.5,2.42150271]
[1758596845092,7.12352778,4136.6,4136.5,2.42150271]
[1758596845415,7.12252778,4136.6,4136.5,2.42150271]
[1758596845576,0.86452778,4136.6,4136.5,3.10450271]
[1758596845781,4.38925713,4136.6,4136.5,3.10450271]
[1758596845984,4.168,4136.6,4136.5,3.10450271]
[1758596846232,0.001,4137.3,4137.2,2.41709368]
[1758596846434,0.22255027,4137.3,4137.2,2.41709368]
[1758596846600,0.1208,4137.2,4136.7,0.2491]
[1758596846938,0.22155027,4137.1,4137.0,2.41721053]
[1758596847229,4.38955027,4137.1,4137.0,3.10021053]
[1758596847439,4.168,4137.1,4137.0,3.10021053]
[1758596847585,4.38955905,4137.1,4137.0,3.10021053]
[1758596848193,4.168,4137.1,4137.0,3.10021053]
[1758596849031,4.3896019,4137.1,4137.0,3.10021053]
[1758596849404,4.3896019,4137.1,4136.5,0.004]
[1758596849405,4.75206867,4137.1,4136.5,0.004]
[1758596849604,0.86501083,4137.0,4136.8,2.41729363]
[1758596849829,0.4511019,4136.9,4136.8,2.41729363]
[1758596850033,3.61770581,4136.9,4136.5,2.42148634]
[1758596850331,3.61770581,4136.9,4136.5,0.004]
[1758596850332,5.18326365,4136.8,4136.5,0.004]
[1758596850502,0.86500581,4136.7,4136.5,0.004]
[1758596850701,0.35456365,4136.6,4136.5,0.004]
[1758596850927,1.01626365,4136.6,4136.5,0.004]
[1758596851130,1.52670581,4136.6,4136.5,0.004]
[1758596851330,2.16464907,4136.6,4136.5,0.004]
[1758596851845,1.01626365,4136.6,4136.5,0.004]
[1758596852053,2.16464907,4136.6,4136.5,0.004]
[1758596853998,2.16457276,4136.6,4136.5,0.004]
[1758596854235,1.50287276,4136.6,4136.5,0.004]
[1758596854437,2.16457276,4136.6,4136.5,0.004]
[1758596857102,1.0944295,4136.6,4136.5,0.004]
[1758596858332,1.50287276,4136.6,4136.5,0.004]
[1758596858739,0.8649295,4136.6,4136.5,0.004]
[1758596859101,7.1229295,4136.6,4136.5,0.004]
[1758596859299,7.76087276,4136.6,4136.5,0.004]
[1758596859503,7.99037276,4136.6,4136.5,0.004]
[1758596859704,7.3524295,4136.6,4136.5,0.004]
[1758596859905,7.7620553,4136.6,4136.5,0.004]
[1758596860104,7.1229295,4136.6,4136.5,2.42150271]
[1758596860329,7.1229295,4136.6,4136.5,0.004]
[1758596860504,7.7846295,4136.6,4136.5,0.004]
[1758596860930,3.80370307,4136.6,4136.5,0.004]
[1758596861142,7.1229295,4136.6,4136.5,0.004]
[1758596862304,5.0319295,4136.6,4136.5,0.004]
[1758596862507,7.1229295,4136.6,4136.5,0.004]
[1758596862918,7.7846295,4136.6,4136.5,0.004]
[1758596863243,8.63240307,4136.6,4136.5,0.004]
[1758596864357,7.7846295,4136.6,4136.5,0.004]
[1758596864978,8.63729615,4136.6,4136.5,0.004]
[1758596865430,8.63727253,4136.6,4136.5,0.004]
[1758596865826,7.7846295,4136.6,4136.5,0.004]
[1758596866367,7.7853955,4136.6,4136.5,0.004]
[1758596866942,7.7853942,4136.6,4136.5,0.004]
[1758596868072,8.63794464,4136.6,4136.5,0.004]
[1758596868251,7.7853942,4136.6,4136.5,0.004]
[1758596868652,7.78540415,4136.6,4136.5,0.004]
[1758596869167,2.38000857,4136.6,4136.5,0.004]
[1758596869373,7.78540415,4136.6,4136.5,0.004]
[1758596869939,5.03270415,4136.6,4136.5,0.004]
[1758596870158,7.97629443,4136.6,4136.5,0.004]
[1758596871150,0.86570415,4136.6,4136.5,0.2463]
[1758596871390,5.03270415,4136.6,4136.5,3.10000271]
[1758596871551,5.03270415,4136.6,4136.5,0.004]
[1758596871874,5.03270415,4136.6,4136.5,3.10000271]
[1758596872963,0.86570415,4136.6,4136.5,3.10000271]
[1758596873290,4.52226199,4136.6,4136.5,3.10000271]
[1758596873458,5.03270415,4136.6,4136.5,3.10000271]
[1758596874170,0.86570415,4136.6,4136.5,3.10000271]
[1758596874378,4.52226199,4136.6,4136.5,3.10000271]
[1758596874886,5.03270415,4136.6,4136.5,3.10000271]
[1758596875256,0.22204329,4136.6,4136.5,3.12417773]
[1758596875451,4.2868,4136.7,4136.6,2.41744427]
[1758596875792,4.50884329,4136.7,4136.6,3.09594427]
[1758596877768,5.02034687,4136.7,4136.6,3.09594427]
[1758596877959,4.50884329,4136.7,4136.6,3.09594427]
[1758596878161,0.64042948,4137.3,4136.6,3.09594427]
[1758596878392,0.001,4137.3,4137.2,2.41709368]
[1758596878590,5.03386253,4137.3,4137.2,3.09559368]
[1758596878793,0.86786253,4137.3,4137.2,3.09559368]
[1758596879066,0.47708329,4137.3,4137.2,3.11976461]
[1758596879268,0.001,4137.3,4137.2,3.11976461]
[1758596879495,0.001,4137.3,4137.2,3.09559368]
[1758596880906,0.001,4137.3,4137.2,6.24056461]
[1758596881088,0.001,4137.3,4137.2,6.21639368]
[1758596881266,0.001,4137.3,4137.2,8.30739368]
[1758596881466,0.001,4138.2,4138.0,2.41662638]
[1758596881678,0.001,4138.2,4138.1,2.44073366]
[1758596882008,0.001,4138.2,4138.1,3.09506799]
[1758596882813,0.001,4138.2,4138.1,2.41656799]
[1758596883533,0.001,4138.2,4137.8,2.41670311]
[1758596883731,4.3927,4138.1,4137.9,2.41668155]
[1758596884028,0.456,4138.2,4138.1,2.41656799]
[1758596884029,0.001,4138.2,4138.1,2.41656799]
[1758596884234,4.166,4138.2,4138.1,3.09506799]
[1758596884368,4.166,4138.2,4138.1,2.65886799]
[1758596884965,0.001,4138.2,4138.1,3.09506799]
[1758596886399,0.001,4138.2,4137.3,0.4362]
[1758596886595,0.2277,4138.1,4137.3,3.93001224]
[1758596886793,4.3917,4138.1,4137.8,2.41669702]
[1758596887133,0.001,4138.2,4138.0,2.41662638]
[1758596887430,0.001,4138.2,4137.5,0.6785]
[1758596887431,4.164,4138.0,4137.9,2.41668479]
[1758596887823,4.164,4138.0,4137.9,2.65898479]
[1758596888024,4.164,4138.0,4137.9,2.41668479]
[1758596888420,0.001,4138.2,4137.2,4.4063]
[1758596888624,0.2287,4138.2,4138.0,2.4165866]
[1758596888935,0.2287,4138.2,4138.0,2.41662206]
[1758596889147,4.165,4138.2,4137.8,2.41668932]
[1758596889351,0.2277,4138.1,4137.9,2.41667309]
[1758596889556,0.2277,4138.1,4136.7,2.41738583]
[1758596889557,0.6827,4138.0,4136.7,2.41738583]
[1758596889706,0.90383805,4137.9,4137.0,2.41720133]
[1758596890039,1.03649924,4137.8,4137.6,0.004]
[1758596890237,2.31113805,4137.7,4137.6,2.42086001]
[1758596890407,2.31113805,4137.7,4137.6,0.004]
[1758596891121,2.53883805,4137.7,4137.6,0.004]
[1758596891439,5.06683805,4137.7,4137.6,0.004]
[1758596891755,4.38413805,4137.7,4137.6,2.42086001]
[1758596892099,4.163,4137.7,4137.6,2.42086001]
[1758596892302,5.06686766,4137.7,4137.6,0.004]
[1758596892609,5.70905188,4137.7,4137.6,0.004]
[1758596893553,5.70907471,4137.7,4137.6,0.004]
[1758596894037,6.50107471,4137.7,4137.6,0.004]
[1758596894337,5.70907471,4137.7,4137.6,0.004]
[1758596895017,5.70897244,4137.7,4137.6,0.004]
[1758596895642,6.50097244,4137.7,4137.6,0.004]
[1758596895813,7.14040192,4137.7,4137.6,0.004]
[1758596896010,7.13709063,4137.7,4137.6,0.004]
[1758596896454,9.50097244,4137.7,4137.6,0.004]
[1758596896756,29.47890429,4137.7,4137.6,0.004]
[1758596897056,9.50097244,4137.7,4137.6,0.004]
[1758596899330,10.35356272,4137.7,4137.6,0.004]
[1758596899559,9.50097244,4137.7,4137.6,0.004]
[1758596901978,9.50110861,4137.7,4137.6,0.004]
[1758596904644,15.93441678,4137.7,4137.6,0.004]
[1758596904875,15.93441678,4137.7,4136.5,0.004]
[1758596904876,3.9128,4137.6,4136.5,0.004]
[1758596905195,6.43330817,4136.7,4136.5,0.004]
[1758596905491,11.7583745,4136.6,4136.5,0.004]
[1758596905675,11.57480861,4136.6,4136.5,0.004]
[1758596906489,11.67174341,4136.6,4136.5,0.004]
[1758596906696,19.96845172,4136.6,4136.5,0.004]
[1758596908290,19.11931047,4136.6,4136.5,0.004]
[1758596909664,19.96845172,4136.6,4136.5,0.004]
[1758596910003,19.96792822,4136.6,4136.5,0.004]
[1758596910910,19.11878697,4136.6,4136.5,0.004]
[1758596911216,2.41767806,4136.2,4135.1,0.02]
[1758596911396,15.47245217,4136.2,4135.1,0.02]
[1758596911703,16.98638217,4136.2,4135.1,0.02]
[1758596912497,16.98641457,4136.2,4135.1,0.02]
[1758596913594,19.34853023,4136.2,4135.1,0.02]
[1758596913999,16.93085217,4136.2,4135.1,0.02]
[1758596914908,20.61976992,4136.2,4135.1,0.02]
[1758596915408,20.61948222,4136.2,4135.1,0.02]
[1758596915698,18.20180416,4136.2,4135.1,0.02]
[1758596915877,0.792,4136.0,4135.1,0.02]
[1758596916078,7.44756706,4135.2,4135.1,0.02]
[1758596916390,14.56345217,4135.2,4135.1,0.02]
[1758596916571,14.80075217,4135.2,4135.1,0.02]
[1758596916765,15.22985217,4135.2,4135.1,0.02]
[1758596916967,19.65730137,4135.2,4135.1,0.02]
[1758596917494,19.02185217,4135.2,4135.1,0.02]
[1758596917676,19.14040144,4135.2,4135.1,0.02]
[1758596918001,19.14011824,4135.2,4135.1,0.02]
[1758596918218,11.69255118,4135.2,4135.1,0.02]
[1758596918378,19.14011824,4135.2,4135.1,0.02]
[1758596919478,4.77315118,4135.2,4135.1,0.02]
[1758596919686,18.47471824,4135.2,4135.1,0.02]
[1758596920689,14.31171824,4135.2,4135.1,0.02]
[1758596920886,18.31787579,4135.2,4135.1,0.02]
[1758596921116,3.98115118,4135.2,4135.1,0.02]
[1758596921314,10.36089048,4135.2,4135.1,0.2593]
[1758596921499,10.87038985,4135.2,4135.1,0.2593]
[1758596921703,10.23515118,4135.2,4135.1,0.2593]
[1758596922093,7.23515118,4135.2,4135.1,0.6874]
[1758596922702,5.02560191,4135.2,4135.1,0.6874]
[1758596923020,7.11760191,4135.2,4135.1,0.6874]
[1758596923198,7.11760191,4135.2,4135.1,0.02]
[1758596923398,10.11760191,4135.2,4135.1,0.02]
[1758596923629,11.57600191,4135.2,4135.1,0.02]
[1758596923787,3.86260191,4135.2,4135.1,0.02]
[1758596923992,10.96396153,4135.2,4135.1,0.02]
[1758596924187,11.08303418,4135.2,4135.1,0.02]
[1758596924389,10.47297456,4135.2,4135.1,0.02]
[1758596924613,11.26497456,4135.2,4135.1,0.02]
[1758596924925,11.69407456,4135.2,4135.1,0.02]
[1758596925275,11.02767456,4135.2,4135.1,0.02]
[1758596925481,11.73067456,4135.2,4135.1,0.02]
[1758596925678,11.27527456,4135.2,4135.1,0.02]
[1758596925920,10.23567456,4135.2,4135.1,0.02]
[1758596926138,10.23580794,4135.2,4135.1,0.02]
[1758596926286,11.02780794,4135.2,4135.1,0.02]
[1758596926485,11.73080794,4135.2,4135.1,0.02]
[1758596926682,13.00170635,4135.2,4135.1,0.02]
[1758596926923,11.73080794,4135.2,4135.1,0.02]
[1758596927219,13.00233262,4135.2,4135.1,0.02]
[1758596927461,11.73080794,4135.2,4135.1,0.02]
[1758596927831,13.00249122,4135.2,4135.1,0.02]
[1758596928222,8.38508444,4135.2,4135.1,0.02]
[1758596928423,11.27540794,4135.2,4135.1,0.02]
[1758596928958,11.27540794,4135.2,4135.1,0.024]
[1758596929255,11.73080794,4135.2,4135.1,0.024]
[1758596929563,0.792,4135.0,4134.6,0.004]
[1758596929780,1.64017942,4134.7,4134.6,0.004]
[1758596929921,6.66491471,4134.7,4134.6,0.004]
[1758596930314,5.81673529,4134.7,4134.6,0.004]
[1758596930535,13.26430235,4134.7,4134.6,0.004]
[1758596930762,14.11270276,4134.7,4134.6,0.004]
[1758596931322,13.26430235,4134.7,4134.6,0.004]
[1758596931521,13.26456254,4134.7,4134.6,0.004]
[1758596932454,15.83683167,4134.7,4134.6,0.004]
[1758596933449,14.56456254,4134.7,4134.6,0.004]
[1758596933649,18.26756254,4134.7,4134.1,0.02]
[1758596933850,3.792,4134.2,4134.1,0.02]
[1758596934029,8.81699548,4134.2,4134.1,0.02]
[1758596934224,9.51999548,4134.2,4134.1,0.02]
[1758596934424,11.21725015,4134.2,4134.1,0.02]
[1758596935073,18.20941721,4134.2,4134.1,0.02]
[1758596935379,3.21096468,4134.0,4132.5,0.31416814]
[1758596935533,11.23956706,4133.2,4132.6,0.2473]
[1758596935884,18.35656254,4133.2,4132.6,0.7192]
[1758596936196,18.35656254,4133.2,4132.5,0.31416814]
[1758596936380,18.35656254,4133.2,4132.8,0.2473]
[1758596936532,10.11699548,4133.2,4133.1,0.7392]
[1758596936936,17.56456254,4133.2,4133.1,0.02]
[1758596937587,17.81216254,4133.2,4133.1,0.02]
[1758596937788,19.05956254,4133.2,4133.1,0.02]
[1758596938285,18.60416254,4133.2,4133.1,0.02]
[1758596938454,18.35656254,4133.2,4133.1,0.02]
[1758596938770,10.11699548,4133.2,4133.1,0.02]
[1758596940244,13.31098357,4133.2,4133.1,0.02]
[1758596940435,3.792,4133.1,4132.5,0.31416814]
[1758596940681,11.23956706,4132.6,4132.5,0.31416814]
[1758596940996,16.96756254,4132.6,4132.5,0.31416814]
[1758596941287,18.66439969,4132.6,4132.5,0.31416814]
[1758596941667,18.20899969,4132.6,4132.5,0.31416814]
[1758596941837,17.28178344,4132.6,4132.5,0.31416814]
[1758596942037,17.28178344,4132.6,4132.2,0.003]
[1758596942038,3.792,4132.5,4132.2,0.003]
[1758596942243,3.792,4132.3,4132.2,0.003]
[1758596942497,6.35062072,4132.3,4132.2,0.003]
[1758596942698,4.65504824,4132.3,4132.2,0.003]
[1758596942902,4.90264824,4132.3,4132.2,0.003]
[1758596943109,5.35804824,4132.3,4132.2,0.003]
[1758596943593,4.65504824,4132.3,4132.2,0.003]
[1758596943802,0.792,4132.1,4131.6,0.2473]
[1758596943997,5.81704824,4132.1,4131.6,0.2473]
[1758596944679,1.26997563,4131.9,4131.6,0.2473]
[1758596944880,5.02504824,4131.8,4131.6,0.2473]
[1758596945187,0.86304824,4131.7,4131.6,0.2473]
[1758596945589,0.1208,4131.6,4131.4,0.4719]
[1758596945808,7.11804824,4131.5,4131.4,0.7192]
[1758596946113,7.96446783,4131.5,4131.4,0.7192]
[1758596946614,7.11804824,4131.5,4131.4,0.7192]
[1758596946988,7.96446783,4131.5,4131.4,0.7192]
[1758596947385,7.11804824,4131.5,4131.4,0.7192]
[1758596947586,7.11804824,4131.5,4131.4,0.2473]
[1758596947811,7.11804824,4131.5,4131.4,0.7192]
[1758596948708,7.75225906,4131.5,4131.4,0.7192]
[1758596949010,7.11804824,4131.5,4131.4,0.7192]
[1758596949579,7.75216382,4131.5,4131.4,0.7192]
[1758596950331,1.49707007,4131.5,4131.4,0.7192]
[1758596950533,6.98647583,4131.5,4131.4,0.7192]
[1758596951234,4.89247583,4131.5,4131.4,3.139687]
[1758596952298,0.73047583,4131.5,4131.4,3.139687]
[1758596952617,4.38297646,4131.5,4131.4,3.139687]
[1758596953331,0.22097646,4131.5,4131.4,3.139687]
[1758596953630,4.2828,4131.6,4131.5,2.42042841]
[1758596953833,0.1208,4131.6,4131.5,3.13962841]
[1758596954896,0.1208,4131.6,4131.5,0.7192]
[1758596954897,0.22038251,4131.6,4131.5,0.7192]
[1758596955125,0.72803684,4131.6,4131.5,3.13962841]
[1758596955440,0.72803684,4131.6,4131.5,0.7192]
[1758596955653,0.86027658,4131.6,4131.3,0.004]
[1758596955804,0.63402183,4131.4,4131.3,0.004]
[1758596955999,0.86027658,4131.4,4131.3,0.004]
[1758596956231,1.49498437,4131.4,4131.3,0.004]
[1758596956430,0.86051724,4131.4,4131.3,0.004]
[1758596957540,0.86051724,4131.4,4131.3,0.24]
[1758596958273,1.49553121,4131.4,4131.3,0.24]
[1758596958423,0.86051724,4131.4,4131.3,0.24]
[1758596958766,1.49574153,4131.4,4131.3,0.24]
[1758596958963,0.86069704,4131.4,4131.3,0.24]
[1758596959326,2.40051663,4131.4,4131.3,0.004]
[1758596959520,1.70711663,4131.4,4131.3,0.004]
[1758596959770,5.65836374,4131.4,4131.3,0.6819]
[1758596959924,5.02269704,4131.4,4131.3,0.6819]
[1758596960239,5.02269704,4131.4,4131.3,0.004]
[1758596960442,5.65871882,4131.4,4131.3,0.004]
[1758596960641,6.56251663,4131.4,4131.3,0.004]
[1758596960820,5.25249704,4131.4,4131.3,0.004]
[1758596961017,6.10048452,4131.4,4131.3,0.004]
[1758596961369,5.25249704,4131.4,4131.3,0.004]
[1758596961572,5.25289183,4131.4,4131.3,0.004]
[1758596961764,5.71649183,4131.4,4131.3,0.004]
[1758596961966,5.25289183,4131.4,4131.3,0.004]
[1758596962472,5.02309183,4131.4,4131.3,0.004]
[1758596962980,7.11609183,4131.4,4131.3,2.42454559]
[1758596963284,7.96543649,4131.4,4131.3,2.42454559]
[1758596963639,1.71043649,4131.4,4131.3,2.66054559]
[1758596963959,7.11609183,4131.4,4131.3,3.10244559]
[1758596964480,7.11680765,4131.4,4131.3,3.10244559]
[1758596965252,7.96615231,4131.4,4131.3,3.10244559]
[1758596965768,7.11680765,4131.4,4131.3,3.10244559]
[1758596965953,7.11680765,4131.4,4131.3,0.004]
[1758596966261,7.81020765,4131.4,4131.3,0.004]
[1758596966453,7.34660765,4131.4,4131.3,0.004]
[1758596966660,9.08018328,4131.4,4131.3,0.004]
[1758596966866,7.81020765,4131.4,4131.3,0.004]
[1758596967442,3.1208,4131.3,4131.1,0.02]
[1758596967683,5.02280765,4131.2,4131.1,0.02]
[1758596967846,5.71620765,4131.2,4131.1,0.02]
[1758596969954,5.02280765,4131.2,4131.1,0.02]
[1758596970280,0.86180765,4131.2,4131.1,2.67666277]
[1758596970442,7.96854935,4131.2,4131.1,3.11856277]
[1758596970642,7.11680765,4131.2,4131.1,0.02]
[1758596970874,7.11680765,4131.2,4131.1,3.11856277]
[1758596971064,0.86180765,4131.2,4131.1,3.11856277]
[1758596971268,7.11680765,4131.2,4131.1,3.11856277]
[1758596971850,0.86180765,4131.2,4131.1,3.11856277]
[1758596972047,5.66159818,4131.2,4131.1,3.11856277]
[1758596972249,5.02280765,4131.2,4131.1,3.11856277]
[1758596972445,0.86180765,4131.2,4131.1,3.11856277]
[1758596972661,5.01065209,4131.2,4131.1,3.11856277]
[1758596972878,0.84965209,4131.2,4131.1,3.11856277]
[1758596973180,0.85277749,4131.2,4131.1,3.11856277]
[1758596973559,0.3417571,4131.2,4131.1,3.11856277]
[1758596975281,0.1208,4131.2,4131.1,3.11856277]
[1758596975960,0.1208,4131.2,4131.1,0.02]
[1758596976160,1.56020563,4131.2,4131.1,0.02]
[1758596976397,2.41194733,4131.2,4131.1,0.02]
[1758596976575,0.86680563,4131.2,4131.1,0.6979]
[1758596976772,0.86680563,4131.2,4131.1,3.11856277]
[1758596977079,5.02680563,4131.2,4131.1,3.11856277]
[1758596977623,4.3820623,4131.2,4131.1,3.11856277]
[1758596977787,4.38205154,4131.2,4131.1,3.11856277]
[1758596977987,4.89362388,4131.2,4131.1,3.11856277]
[1758596978193,4.38205154,4131.2,4131.1,3.11856277]
[1758596979012,4.67155336,4131.5,4131.4,2.420487]
[1758596979176,4.89360343,4131.5,4131.4,3.098387]
[1758596979532,0.8517417,4132.3,4131.4,3.098387]
[1758596979533,0.63945427,4132.3,4131.4,2.1179]
[1758596979675,0.51153279,4133.1,4131.8,0.792]
[1758596979877,4.18,4133.9,4132.0,3.0]
[1758596980110,2.10928179,4133.8,4132.2,5.42001839]
[1758596980272,0.13328179,4133.7,4133.5,2.41924462]
[1758596980472,2.45608179,4133.7,4133.2,2.41937925]
[1758596980719,0.82668179,4133.6,4132.4,0.236]
[1758596981019,4.30328179,4133.5,4133.2,2.41943253]
[1758596981223,4.3998,4133.5,4132.4,0.236]
[1758596981383,4.17,4133.5,4132.7,0.236]
[1758596981581,2.093,4133.5,4133.4,2.4193133]
[1758596981773,6.263,4133.5,4133.4,2.4193133]
[1758596982011,6.263,4133.5,4132.7,2.41969487]
[1758596982012,0.02,4133.9,4132.4,2.41990126]
[1758596982212,6.263,4133.8,4132.3,0.6779]
[1758596982509,6.7266,4133.8,4132.4,0.6779]
[1758596982679,6.7266,4133.8,4133.6,2.41916546]
[1758596983079,6.263,4133.8,4133.6,2.41916546]
[1758596983277,6.263,4133.8,4133.0,0.236]
[1758596983476,0.2498,4133.9,4133.0,0.236]
[1758596983477,4.173,4133.7,4133.1,2.41949142]
[1758596983682,0.02,4133.9,4133.8,2.41908171]
[1758596983892,6.286,4133.9,4133.2,0.6779]
[1758596984106,6.286,4133.9,4133.2,0.236]